[Event "IND-ch Senior Open 2019"]
[Site "Mazitar"]
[Date "2019.12.12"]
[Round "4.10"]
[White "Vignesh N R"]
[Black "Senthil Maran K"]
[Result "1/2-1/2"]
[ECO "B14"]
[WhiteElo "2475"]
[BlackElo "2305"]
[Annotator "ChessBase"]
[PlyCount "76"]
[EventDate "2018.12.08"]
[EventType "swiss"]
[EventRounds "11"]
[EventCountry "IND"]
[SourceTitle "playchess.com"]
[Source "ChessBase"]
[SourceQuality "1"]
[TimeControl "40/5400+30:1800+30"]

1. e4 {[%emt 1:28:05]} c6 {[%emt 1:25:51]} 2. d4 {[%emt 0:00:00]} d5 {[%emt 0:05:08]} 3. exd5 {[%emt 0:03:24]} cxd5 {[%emt 0:00:31]} 4. c4 {[%emt 0:00:30]} Nf6 {[%emt 0:00:00]} 5. Nc3 {[%emt 0:00:30]} g6 {[%emt 0:00:59]} 6. Nf3 {[%emt 0:00:00]} Bg7 {[%emt 0:00:30]} 7. h3 {[%emt 0:01:01]} O-O {[%emt 0:00:30]} 8. Be2 {[%emt 0:00:00]} Nc6 {[%emt 0:00:30]} 9. O-O {[%emt 0:00:00]} dxc4 {[%emt 0:00:30]} 10. Bxc4 {[%emt 0:00:00]} Na5 {[%emt 0:00:30]} 11. Bd3 {[%emt 0:01:59]} Be6 {[%emt 0:00:30]} 12. Bg5 {[%emt 0:00:00]} Rc8 {[%emt 0:00:28]} 13. Re1 {[%emt 0:01:00]} Nc6 14. Bc2 {[%emt 0:00:00]} Bd5 {[%emt 0:01:03]} 15. Nxd5 {[%emt 0:00:00]} Nxd5 {[%emt 0:00:30]} 16. Bb3 {[%emt 0:00:15]} h6 {[%emt 0:00:00]} 17. Bd2 {[%emt 0:00:00]} e6 {[%emt 0:00:57]} 18. Rc1 {[%emt 0:02:14]} Qd6 {[%emt 0:00:32]} 19. Qe2 {[%emt 0:00:00]} Nde7 {[%emt 0:00:30]} 20. Rcd1 {[%emt 0:00:00]} Rfd8 {[%emt 0:00:29]} 21. Bc1 {[%emt 0:01:30]} Kh7 {[%emt 0:00:32]} 22. Qe4 {[%emt 0:00:30]} Qb4 {[%emt 0:00:30]} 23. Bd2 Qb6 {[%emt 0:00:30]} 24. Be3 {[%emt 0:01:00]} Nd5 {[%emt 0:00:29]} 25. Bg5 {[%emt 0:00:25]} Rd7 {[%emt 0:00:31]} 26. Qh4 {[%emt 0:00:35]} Nde7 {[%emt 0:00:28]} 27. Bxe7 {[%emt 0:00:32]} Nxe7 {[%emt 0:00:30]} 28. Ng5+ {[%emt 0:00:28]} Kg8 {[%emt 0:00:32]} 29. Nxe6 {[%emt 0:00:29]} Nf5 {[%emt 0:00:30]} 30. Qg4 {[%emt 0:00:33]} Re8 {[%emt 0:00:28]} 31. Ba4 {[%emt 0:00:30]} h5 {[%emt 0:00:29]} 32. Qf4 {[%emt 0:00:30]} Bh6 {[%emt 0:00:30]} 33. Qf3 {[%emt 0:00:30]} Nxd4 {[%emt 0:00:31]} 34. Qd3 {[%emt 0:00:30]} Nf3+ {[%emt 0:00:32]} 35. Qxf3 {[%emt 0:00:30]} Rxd1 {[%emt 0:00:30]} 36. Bxd1 {[%emt 0:00:30]} Rxe6 {[%emt 0:00:30]} 37. Rxe6 {[%emt 0:00:30]} Qxe6 {[%emt 0:00:30]} 38. Bb3 {[%emt 0:00:30]} Qe7 {[%emt 0:00:29]} 1/2-1/2

[Event "IND-ch Senior Open 2019"]
[Site "Mazitar"]
[Date "2019.12.12"]
[Round "4.11"]
[White "Muthaiah AL"]
[Black "Kunte, Abhijit"]
[Result "1-0"]
[ECO "E11"]
[WhiteElo "2363"]
[BlackElo "2467"]
[Annotator "ChessBase"]
[PlyCount "73"]
[EventDate "2018.12.08"]
[EventType "swiss"]
[EventRounds "11"]
[EventCountry "IND"]
[SourceTitle "playchess.com"]
[Source "ChessBase"]
[SourceQuality "1"]
[TimeControl "40/5400+30:1800+30"]

1. d4 {[%emt 1:29:47]} Nf6 {[%emt 1:30:11]} 2. c4 {[%emt 0:00:51]} e6 {[%emt 0:00:27]} 3. Nf3 {[%emt 0:00:18]} Bb4+ {[%emt 0:00:00]} 4. Bd2 {[%emt 0:00:26]} a5 {[%emt 0:01:14]} 5. g3 {[%emt 0:00:00]} d5 {[%emt 0:00:24]} 6. Qc2 {[%emt 0:00:44]} O-O {[%emt 0:00:00]} 7. Bg2 {[%emt 0:00:34]} c6 {[%emt 0:00:00]} 8. O-O {[%emt 0:00:00]} Be7 {[%emt 0:01:37]} 9. Rd1 {[%emt 0:00:00]} Nbd7 {[%emt 0:00:00]} 10. Bf4 {[%emt 0:02:19]} Nh5 {[%emt 0:00:56]} 11. Bc1 {[%emt 0:00:00]} b5 {[%emt 0:00:06]} 12. b3 {[%emt 0:00:00]} Ba6 {[%emt 0:00:00]} 13. Nbd2 {[%emt 0:00:03]} Nhf6 {[%emt 0:00:00]} 14. Bb2 {[%emt 0:00:00]} Rc8 {[%emt 0:00:00]} 15. c5 {[%emt 0:00:00]} b4 {[%emt 0:02:22]} 16. e3 {[%emt 0:00:00]} Qc7 {[%emt 0:00:00]} 17. a3 {[%emt 0:02:30]} Bb5 {[%emt 0:00:00]} 18. axb4 {[%emt 0:00:00]} axb4 {[%emt 0:01:12]} 19. Ne1 {[%emt 0:01:57]} e5 {[%emt 0:00:00]} 20. Nd3 {[%emt 0:00:00]} e4 {[%emt 0:00:05]} 21. Nxb4 {[%emt 0:00:05]} Ng4 {[%emt 0:01:49]} 22. Nb1 {[%emt 0:00:00]} f5 {[%emt 0:00:00]} 23. Nc3 {[%emt 0:00:52]} Rb8 {[%emt 0:01:01]} 24. Nbxd5 {[%emt 0:00:00]} cxd5 {[%emt 0:00:22]} 25. Nxd5 {[%emt 0:01:59]} Qd8 {[%emt 0:00:36]} 26. c6 {[%emt 0:00:24]} Ndf6 {[%emt 0:00:00]} 27. Nxe7+ {[%emt 0:00:00]} Qxe7 {[%emt 0:00:56]} 28. Ba3 {[%emt 0:01:10]} Qf7 {[%emt 0:00:37]} 29. Bxf8 {[%emt 0:00:00]} Nxh2 {[%emt 0:00:28]} 30. c7 {[%emt 0:00:00]} Rc8 {[%emt 0:00:00]} 31. Ra8 {[%emt 0:00:44]} Rxa8 {[%emt 0:00:00]} 32. c8=Q {[%emt 0:00:59]} Rxc8 {[%emt 0:01:21]} 33. Qxc8 {[%emt 0:00:46]} Qh5 {[%emt 0:00:00]} 34. Be7+ {[%emt 0:00:00]} Kf7 {[%emt 0:00:00]} 35. Bxf6 {[%emt 0:00:00]} Qxd1+ {[%emt 0:01:40]} 36. Kxh2 {[%emt 0:01:28]} Kxf6 {[%emt 0:00:31]} 37. Qd8+ {[%emt 0:00:00]} 1-0

[Event "IND-ch Senior Open 2019"]
[Site "Mazitar"]
[Date "2019.12.12"]
[Round "4.12"]
[White "Das, Arghyadip"]
[Black "Harshad S"]
[Result "1/2-1/2"]
[ECO "B90"]
[WhiteElo "2459"]
[BlackElo "2291"]
[Annotator "ChessBase"]
[PlyCount "93"]
[EventDate "2018.12.08"]
[EventType "swiss"]
[EventRounds "11"]
[EventCountry "IND"]
[SourceTitle "playchess.com"]
[Source "ChessBase"]
[SourceQuality "1"]
[TimeControl "40/5400+30:1800+30"]

1. e4 {[%emt 1:29:18]} c5 {[%emt 1:30:29]} 2. Nf3 {[%emt 0:01:41]} d6 3. d4 cxd4 {[%emt 0:01:01]} 4. Nxd4 {[%emt 0:01:00]} Nf6 {[%emt 0:00:23]} 5. Nc3 {[%emt 0:00:27]} a6 {[%emt 0:00:32]} 6. h3 {[%emt 0:00:26]} e5 {[%emt 0:00:00]} 7. Nde2 {[%emt 0:00:32]} Be6 {[%emt 0:00:00]} 8. g4 {[%emt 0:00:00]} h6 {[%emt 0:00:00]} 9. Bg2 {[%emt 0:00:45]} Be7 {[%emt 0:00:03]} 10. Be3 {[%emt 0:00:00]} Nbd7 {[%emt 0:00:00]} 11. Ng3 {[%emt 0:00:00]} Qc7 {[%emt 0:00:00]} 12. Nd5 {[%emt 0:00:00]} Bxd5 {[%emt 0:03:02]} 13. exd5 {[%emt 0:02:21]} Rc8 {[%emt 0:00:00]} 14. O-O {[%emt 0:00:00]} O-O {[%emt 0:00:00]} 15. Nf5 {[%emt 0:00:00]} Rfe8 {[%emt 0:01:17]} 16. Nxe7+ {[%emt 0:00:00]} Rxe7 {[%emt 0:01:08]} 17. c4 {[%emt 0:01:45]} Ree8 {[%emt 0:00:00]} 18. Rc1 {[%emt 0:00:00]} a5 {[%emt 0:00:00]} 19. a3 {[%emt 0:00:00]} e4 {[%emt 0:00:00]} 20. Bd4 {[%emt 0:00:00]} Nc5 {[%emt 0:00:00]} 21. Rc3 {[%emt 0:00:00]} a4 {[%emt 0:00:00]} 22. Bxc5 {[%emt 0:00:00]} Qxc5 {[%emt 0:02:12]} 23. Qxa4 {[%emt 0:03:14]} e3 {[%emt 0:00:39]} 24. Qc2 {[%emt 0:00:17]} Qd4 {[%emt 0:00:00]} 25. Bf3 {[%emt 0:00:00]} Nd7 {[%emt 0:00:00]} 26. Kg2 {[%emt 0:00:00]} Nf8 {[%emt 0:00:27]} 27. fxe3 {[%emt 0:00:58]} Rxe3 {[%emt 0:00:46]} 28. Qf2 {[%emt 0:01:08]} Rd3 {[%emt 0:00:31]} 29. Rxd3 {[%emt 0:00:00]} Qxd3 {[%emt 0:02:00]} 30. Be2 {[%emt 0:01:01]} Qe4+ {[%emt 0:00:00]} 31. Qf3 {[%emt 0:00:00]} Qe7 {[%emt 0:00:18]} 32. Bd3 {[%emt 0:00:00]} Nd7 {[%emt 0:00:43]} 33. b3 {[%emt 0:00:47]} g6 {[%emt 0:00:00]} 34. a4 {[%emt 0:00:00]} Ne5 {[%emt 0:00:00]} 35. Qe3 {[%emt 0:01:42]} Qc7 {[%emt 0:00:00]} 36. Be2 {[%emt 0:00:00]} Kg7 {[%emt 0:02:18]} 37. Qf2 {[%emt 0:00:14]} Qe7 {[%emt 0:00:17]} 38. Qd4 {[%emt 0:00:22]} Kg8 {[%emt 0:00:00]} 39. Qe3 {[%emt 0:00:10]} Qf8 {[%emt 0:00:57]} 40. Qf4 {[%emt 0:00:45]} Nd7 {[%emt 0:00:00]} 41. Bd3 {[%emt 0:28:40]} Ne5 {[%emt 0:26:08]} 42. Bc2 {[%emt 0:02:14]} Kg7 {[%emt 0:01:17]} 43. Qf6+ {[%emt 0:00:00]} Kg8 {[%emt 0:04:43]} 44. Rf2 {[%emt 0:02:07]} Nd7 {[%emt 0:00:00]} 45. Qf4 {[%emt 0:00:29]} Kg7 {[%emt 0:00:00]} 46. Qd4+ {[%emt 0:00:00]} Ne5 {[%emt 0:01:13]} 47. Bd3 {[%emt 0:00:00]} 1/2-1/2

[Event "IND-ch Senior Open 2019"]
[Site "Mazitar"]
[Date "2019.12.12"]
[Round "4.13"]
[White "Roy Chowdhury, Saptarshi"]
[Black "Shyaamnikhil P"]
[Result "1/2-1/2"]
[ECO "A46"]
[WhiteElo "2294"]
[BlackElo "2455"]
[Annotator "ChessBase"]
[PlyCount "81"]
[EventDate "2018.12.08"]
[EventType "swiss"]
[EventRounds "11"]
[EventCountry "IND"]
[SourceTitle "playchess.com"]
[Source "ChessBase"]
[SourceQuality "1"]
[TimeControl "40/5400+30:1800+30"]

1. d4 {[%emt 1:24:56]} Nf6 {[%emt 1:30:29]} 2. Nf3 {[%emt 0:06:03]} e6 {[%emt 0:00:30]} 3. e3 {[%emt 0:00:00]} b6 {[%emt 0:00:30]} 4. Bd3 {[%emt 0:00:00]} Bb7 {[%emt 0:00:30]} 5. O-O {[%emt 0:01:30]} c5 {[%emt 0:00:30]} 6. c4 {[%emt 0:00:00]} Be7 {[%emt 0:00:30]} 7. Nc3 {[%emt 0:00:00]} cxd4 {[%emt 0:00:30]} 8. Nxd4 {[%emt 0:01:30]} O-O {[%emt 0:00:29]} 9. b3 {[%emt 0:00:30]} Nc6 {[%emt 0:00:31]} 10. Nxc6 {[%emt 0:00:00]} Bxc6 {[%emt 0:00:30]} 11. Bb2 {[%emt 0:01:00]} Qb8 {[%emt 0:00:30]} 12. Nb5 {[%emt 0:00:00]} Rd8 {[%emt 0:00:00]} 13. Nd4 {[%emt 0:01:00]} Bb7 {[%emt 0:01:00]} 14. Qe2 {[%emt 0:00:30]} Qc7 {[%emt 0:00:30]} 15. e4 {[%emt 0:00:30]} d6 {[%emt 0:00:29]} 16. f4 {[%emt 0:00:30]} a6 {[%emt 0:00:31]} 17. Kh1 {[%emt 0:00:00]} Nd7 {[%emt 0:00:30]} 18. Rae1 {[%emt 0:00:00]} Bf6 {[%emt 0:00:29]} 19. Bb1 {[%emt 0:00:00]} Re8 {[%emt 0:00:00]} 20. f5 {[%emt 0:02:00]} Re7 {[%emt 0:01:01]} 21. Rd1 {[%emt 0:00:00]} Bxd4 {[%emt 0:00:30]} 22. Bxd4 {[%emt 0:01:00]} exf5 {[%emt 0:00:30]} 23. Rxf5 {[%emt 0:00:30]} Rae8 {[%emt 0:00:30]} 24. Rf4 {[%emt 0:00:30]} Ne5 {[%emt 0:00:30]} 25. Qf2 {[%emt 0:00:00]} b5 {[%emt 0:00:30]} 26. cxb5 {[%emt 0:00:00]} axb5 {[%emt 0:00:30]} 27. Rf1 {[%emt 0:01:25]} f6 {[%emt 0:00:30]} 28. a4 {[%emt 0:00:35]} Ng6 {[%emt 0:00:30]} 29. Rf5 {[%emt 0:00:31]} bxa4 {[%emt 0:00:30]} 30. bxa4 {[%emt 0:00:30]} Bxe4 31. Bb6 {[%emt 0:00:00]} Qc6 {[%emt 0:01:01]} 32. Bxe4 {[%emt 0:00:00]} Rxe4 {[%emt 0:00:29]} 33. a5 {[%emt 0:00:58]} Ne5 {[%emt 0:00:25]} 34. h3 {[%emt 0:01:01]} Ra4 {[%emt 0:00:34]} 35. Qg3 {[%emt 0:00:19]} Kh8 {[%emt 0:00:31]} 36. Qf2 {[%emt 0:00:42]} Kg8 {[%emt 0:00:30]} 37. Qg3 {[%emt 0:00:30]} Kh8 {[%emt 0:00:27]} 38. Qf2 {[%emt 0:00:30]} Ra3 {[%emt 0:00:30]} 39. Rh5 {[%emt 0:00:19]} Qe4 {[%emt 0:00:29]} 40. Rh4 {[%emt 0:00:40]} Qg6 {[%emt 0:00:34]} 41. Rd4 {[%emt 0:30:30]} 1/2-1/2

[Event "IND-ch Senior Open 2019"]
[Site "Mazitar"]
[Date "2019.12.12"]
[Round "4.14"]
[White "Das, Sayantan"]
[Black "Ritviz, Parab"]
[Result "1/2-1/2"]
[ECO "E63"]
[WhiteElo "2440"]
[BlackElo "2280"]
[Annotator "ChessBase"]
[PlyCount "77"]
[EventDate "2018.12.08"]
[EventType "swiss"]
[EventRounds "11"]
[EventCountry "IND"]
[SourceTitle "playchess.com"]
[Source "ChessBase"]
[SourceQuality "1"]
[TimeControl "40/5400+30:1800+30"]

1. Nf3 {[%emt 1:29:55]} Nf6 {[%emt 1:25:33]} 2. c4 {[%emt 0:01:04]} g6 {[%emt 0:05:27]} 3. g3 {[%emt 0:00:29]} Bg7 {[%emt 0:00:29]} 4. Bg2 {[%emt 0:00:31]} d6 {[%emt 0:00:00]} 5. d4 {[%emt 0:00:30]} O-O {[%emt 0:01:00]} 6. O-O {[%emt 0:00:30]} Nc6 {[%emt 0:00:02]} 7. Nc3 {[%emt 0:00:30]} a6 {[%emt 0:00:00]} 8. Bf4 {[%emt 0:00:30]} Rb8 {[%emt 0:00:00]} 9. Rc1 {[%emt 0:00:30]} Bd7 {[%emt 0:00:00]} 10. c5 {[%emt 0:00:00]} Nh5 {[%emt 0:00:00]} 11. Be3 {[%emt 0:00:00]} e5 {[%emt 0:00:00]} 12. cxd6 {[%emt 0:00:00]} cxd6 {[%emt 0:00:00]} 13. dxe5 {[%emt 0:01:59]} dxe5 {[%emt 0:03:58]} 14. Bc5 {[%emt 0:00:31]} Re8 {[%emt 0:00:28]} 15. Ne4 {[%emt 0:00:08]} Be6 {[%emt 0:00:00]} 16. Qa4 {[%emt 0:00:00]} Nd4 {[%emt 0:00:00]} 17. Nxd4 {[%emt 0:00:00]} exd4 {[%emt 0:01:30]} 18. Rfd1 {[%emt 0:00:00]} Bd7 {[%emt 0:00:00]} 19. Qb4 {[%emt 0:00:00]} a5 {[%emt 0:00:00]} 20. Qc4 {[%emt 0:02:52]} b5 {[%emt 0:00:04]} 21. Qd3 {[%emt 0:00:00]} Bf5 {[%emt 0:00:00]} 22. Bxd4 {[%emt 0:01:00]} Qe7 {[%emt 0:00:00]} 23. Bxg7 {[%emt 0:00:30]} Nxg7 {[%emt 0:02:58]} 24. f3 {[%emt 0:00:02]} Bxe4 {[%emt 0:00:00]} 25. Qxe4 {[%emt 0:00:58]} Qa7+ {[%emt 0:01:00]} 26. Qd4 {[%emt 0:00:30]} Qxd4+ {[%emt 0:00:30]} 27. Rxd4 {[%emt 0:00:30]} Rxe2 {[%emt 0:00:30]} 28. Rcd1 {[%emt 0:00:30]} Nf5 {[%emt 0:00:00]} 29. R4d2 {[%emt 0:00:30]} Rxg2+ {[%emt 0:00:00]} 30. Kxg2 {[%emt 0:00:28]} Ne3+ {[%emt 0:01:30]} 31. Kf2 {[%emt 0:00:32]} Nxd1+ {[%emt 0:00:29]} 32. Rxd1 {[%emt 0:00:30]} Rc8 {[%emt 0:00:00]} 33. Ke3 {[%emt 0:00:30]} Re8+ {[%emt 0:01:00]} 34. Kf2 {[%emt 0:00:30]} Rc8 {[%emt 0:00:15]} 35. Rd2 {[%emt 0:00:30]} Kg7 {[%emt 0:00:00]} 36. f4 {[%emt 0:00:29]} Rc5 {[%emt 0:01:13]} 37. Kf3 {[%emt 0:00:20]} Kf6 {[%emt 0:00:33]} 38. a3 {[%emt 0:00:41]} Ke6 {[%emt 0:00:31]} 39. Re2+ {[%emt 0:00:29]} 1/2-1/2

[Event "IND-ch Senior Open 2019"]
[Site "Mazitar"]
[Date "2019.12.12"]
[Round "4.15"]
[White "Aaryan Varshney"]
[Black "Gusain, Himal"]
[Result "1/2-1/2"]
[ECO "A40"]
[WhiteElo "2269"]
[BlackElo "2412"]
[Annotator "ChessBase"]
[PlyCount "64"]
[EventDate "2018.12.08"]
[EventType "swiss"]
[EventRounds "11"]
[EventCountry "IND"]
[SourceTitle "playchess.com"]
[Source "ChessBase"]
[SourceQuality "1"]
[TimeControl "40/5400+30:1800+30"]

1. d4 {[%emt 1:29:58]} g6 {[%emt 1:30:26]} 2. c4 {[%emt 0:01:01]} Bg7 {[%emt 0:00:33]} 3. Nf3 {[%emt 0:00:30]} d6 {[%emt 0:00:31]} 4. Nc3 {[%emt 0:00:31]} Nd7 {[%emt 0:00:28]} 5. e4 {[%emt 0:00:29]} e6 {[%emt 0:00:32]} 6. Be2 {[%emt 0:00:29]} Ne7 {[%emt 0:00:29]} 7. O-O {[%emt 0:00:30]} b6 {[%emt 0:00:31]} 8. Be3 {[%emt 0:00:30]} Bb7 {[%emt 0:00:30]} 9. Qc2 h6 10. Rad1 {[%emt 0:01:00]} O-O {[%emt 0:00:59]} 11. Rfe1 {[%emt 0:00:30]} f5 {[%emt 0:00:28]} 12. exf5 {[%emt 0:00:30]} gxf5 {[%emt 0:00:33]} 13. Qc1 {[%emt 0:00:30]} Kh7 {[%emt 0:00:29]} 14. b4 {[%emt 0:00:31]} a6 {[%emt 0:00:31]} 15. a4 {[%emt 0:00:30]} Nf6 {[%emt 0:00:29]} 16. b5 {[%emt 0:00:30]} Ne4 {[%emt 0:00:00]} 17. Qc2 {[%emt 0:00:29]} axb5 {[%emt 0:01:01]} 18. axb5 {[%emt 0:00:30]} Qe8 {[%emt 0:00:30]} 19. Ra1 {[%emt 0:00:30]} Qg6 {[%emt 0:00:28]} 20. Nh4 {[%emt 0:00:30]} Qf6 {[%emt 0:00:31]} 21. Nf3 {[%emt 0:00:30]} Nxc3 {[%emt 0:00:30]} 22. Qxc3 {[%emt 0:00:31]} e5 {[%emt 0:00:31]} 23. Rxa8 {[%emt 0:00:29]} Rxa8 {[%emt 0:00:26]} 24. dxe5 {[%emt 0:00:32]} dxe5 {[%emt 0:00:34]} 25. Ra1 {[%emt 0:00:25]} Rb8 {[%emt 0:00:30]} 26. Rd1 {[%emt 0:00:33]} Qe6 {[%emt 0:00:29]} 27. Qd2 {[%emt 0:00:31]} e4 {[%emt 0:00:30]} 28. Nd4 {[%emt 0:00:30]} Qf6 {[%emt 0:00:31]} 29. g3 {[%emt 0:00:00]} Rd8 {[%emt 0:00:29]} 30. Qc2 {[%emt 0:01:01]} f4 {[%emt 0:00:31]} 31. gxf4 {[%emt 0:00:30]} Kh8 {[%emt 0:00:30]} 32. Kf1 {[%emt 0:00:30]} Qf5 {[%emt 0:00:30] Bxd1 -error} 1/2-1/2

[Event "IND-ch Senior Open 2019"]
[Site "Mazitar"]
[Date "2019.12.12"]
[Round "4.16"]
[White "Satyapragyan, Swayangsu"]
[Black "Gajwa Ankit"]
[Result "1-0"]
[ECO "C55"]
[WhiteElo "2412"]
[BlackElo "2274"]
[Annotator "ChessBase"]
[PlyCount "113"]
[EventDate "2018.12.08"]
[EventType "swiss"]
[EventRounds "11"]
[EventCountry "IND"]
[SourceTitle "playchess.com"]
[Source "ChessBase"]
[SourceQuality "1"]
[TimeControl "40/5400+30:1800+30"]

1. e4 {[%emt 1:29:54]} e5 {[%emt 1:30:30]} 2. Nf3 {[%emt 0:01:05]} Nc6 {[%emt 0:00:30]} 3. Bc4 {[%emt 0:00:29]} Nf6 {[%emt 0:00:30]} 4. d3 {[%emt 0:00:31]} Be7 {[%emt 0:00:30]} 5. O-O {[%emt 0:00:30]} O-O {[%emt 0:00:30]} 6. Re1 {[%emt 0:00:00]} d6 {[%emt 0:00:30]} 7. a4 {[%emt 0:00:58]} Na5 {[%emt 0:00:27]} 8. Ba2 {[%emt 0:00:30]} c5 {[%emt 0:00:31]} 9. c3 {[%emt 0:00:31]} Nc6 {[%emt 0:00:31]} 10. Na3 {[%emt 0:00:30]} h6 {[%emt 0:00:30]} 11. h3 {[%emt 0:00:28]} a6 {[%emt 0:00:31]} 12. Bd2 {[%emt 0:00:32]} Rb8 {[%emt 0:00:28]} 13. Nc4 {[%emt 0:00:31]} Be6 {[%emt 0:00:30]} 14. b4 {[%emt 0:00:30]} b5 {[%emt 0:00:00]} 15. axb5 {[%emt 0:00:29]} axb5 {[%emt 0:00:55]} 16. Na5 {[%emt 0:00:32]} Nxa5 {[%emt 0:00:34]} 17. Bxe6 {[%emt 0:00:29]} fxe6 {[%emt 0:00:32]} 18. Rxa5 {[%emt 0:00:30]} cxb4 {[%emt 0:00:30]} 19. cxb4 {[%emt 0:00:31]} Qd7 {[%emt 0:00:31]} 20. Be3 {[%emt 0:00:22]} Rfc8 {[%emt 0:00:28]} 21. Qb3 {[%emt 0:00:37]} Kf7 {[%emt 0:00:00]} 22. d4 {[%emt 0:00:30]} exd4 {[%emt 0:00:00]} 23. Bxd4 {[%emt 0:00:30]} Rc4 {[%emt 0:01:31]} 24. e5 {[%emt 0:00:29]} Nd5 {[%emt 0:00:28]} 25. exd6 {[%emt 0:00:31]} Bxd6 {[%emt 0:00:33]} 26. Bc5 {[%emt 0:00:30]} Rc3 {[%emt 0:00:29]} 27. Qb1 {[%emt 0:00:30]} Rc8 {[%emt 0:00:30]} 28. Ra6 {[%emt 0:00:30]} Bf4 {[%emt 0:00:29]} 29. Raxe6 {[%emt 0:00:28]} Qxe6 {[%emt 0:00:30]} 30. Rxe6 {[%emt 0:00:32]} Rc1+ {[%emt 0:00:31]} 31. Qxc1 {[%emt 0:00:00]} Bxc1 {[%emt 0:00:30]} 32. Rd6 {[%emt 0:00:55]} Nc3 {[%emt 0:00:27]} 33. Rd7+ {[%emt 0:00:33]} Kg8 {[%emt 0:00:34]} 34. g3 {[%emt 0:00:24]} Bb2 {[%emt 0:00:22]} 35. Rb7 {[%emt 0:00:35]} Rd8 {[%emt 0:00:27]} 36. Kg2 {[%emt 0:00:33]} Rd5 {[%emt 0:00:33]} 37. h4 {[%emt 0:00:30]} Ne4 {[%emt 0:00:24]} 38. Rxb5 {[%emt 0:00:25]} Kh7 {[%emt 0:00:35]} 39. Ra5 {[%emt 0:00:35]} Nxc5 {[%emt 0:00:21]} 40. Rxc5 {[%emt 0:00:30]} Rd3 {[%emt 0:00:46]} 41. b5 {[%emt 0:30:30]} Rb3 {[%emt 0:30:31]} 42. Rd5 {[%emt 0:00:22]} Kg6 {[%emt 0:00:28]} 43. Ne1 {[%emt 0:00:32]} Kf6 {[%emt 0:00:33]} 44. Nd3 {[%emt 0:00:30]} Ba3 {[%emt 0:00:29]} 45. Kf3 {[%emt 0:00:21]} Ke6 {[%emt 0:00:31]} 46. Ke4 {[%emt 0:00:37]} Rb1 {[%emt 0:00:30]} 47. Nf4+ {[%emt 0:00:26]} Ke7 {[%emt 0:00:30]} 48. Kf5 {[%emt 0:00:35]} Bb2 {[%emt 0:00:30]} 49. g4 {[%emt 0:00:31]} Bc3 {[%emt 0:00:30]} 50. Ng6+ {[%emt 0:00:37]} Kf7 {[%emt 0:00:23]} 51. f4 {[%emt 0:00:24]} Rb4 {[%emt 0:00:32]} 52. h5 {[%emt 0:00:33]} Bf6 {[%emt 0:00:34]} 53. Ne5+ {[%emt 0:00:29]} Ke8 {[%emt 0:00:26]} 54. Nc6 {[%emt 0:00:34]} Rb1 {[%emt 0:00:30]} 55. g5 {[%emt 0:00:30]} hxg5 {[%emt 0:00:30]} 56. fxg5 {[%emt 0:00:27]} Rf1+ {[%emt 0:00:34]} 57. Kg6 {[%emt 0:00:32]} 1-0

[Event "IND-ch Senior Open 2019"]
[Site "Mazitar"]
[Date "2019.12.12"]
[Round "4.17"]
[White "Visakh N R"]
[Black "Pranav Vijay"]
[Result "1-0"]
[ECO "E15"]
[WhiteElo "2516"]
[BlackElo "2265"]
[Annotator "ChessBase"]
[PlyCount "119"]
[EventDate "2018.12.08"]
[EventType "swiss"]
[EventRounds "11"]
[EventCountry "IND"]
[SourceTitle "playchess.com"]
[Source "ChessBase"]
[SourceQuality "1"]
[TimeControl "40/5400+30:1800+30"]

1. d4 {[%emt 1:30:07]} Nf6 {[%emt 1:30:30]} 2. c4 {[%emt 0:00:51]} e6 {[%emt 0:00:30]} 3. Nf3 {[%emt 0:00:00]} b6 {[%emt 0:00:29]} 4. g3 {[%emt 0:00:34]} Ba6 {[%emt 0:00:07]} 5. b3 {[%emt 0:00:17]} Bb7 {[%emt 0:00:29]} 6. Bg2 {[%emt 0:00:09]} Bb4+ {[%emt 0:00:54]} 7. Bd2 {[%emt 0:01:31]} a5 {[%emt 0:00:12]} 8. O-O {[%emt 0:00:29]} O-O {[%emt 0:00:21]} 9. Bf4 {[%emt 0:00:00]} a4 {[%emt 0:00:00]} 10. bxa4 {[%emt 0:00:00]} d6 {[%emt 0:00:00]} 11. Qb3 {[%emt 0:00:00]} Ba5 {[%emt 0:00:00]} 12. Na3 {[%emt 0:00:45]} Nbd7 {[%emt 0:00:00]} 13. Rfd1 {[%emt 0:00:00]} h6 {[%emt 0:02:38]} 14. Nb5 {[%emt 0:00:00]} Ne4 {[%emt 0:00:00]} 15. Qc2 {[%emt 0:00:00]} f5 {[%emt 0:00:00]} 16. Nd2 {[%emt 0:00:00]} Bxd2 {[%emt 0:00:00]} 17. Bxd2 {[%emt 0:03:46]} Ndf6 {[%emt 0:00:36]} 18. Be1 {[%emt 0:00:00]} c6 {[%emt 0:00:00]} 19. Na3 {[%emt 0:00:00]} Qe7 {[%emt 0:00:00]} 20. Rab1 {[%emt 0:00:00]} Ra6 {[%emt 0:01:50]} 21. f3 {[%emt 0:00:00]} Ng5 {[%emt 0:01:54]} 22. a5 {[%emt 0:02:30]} Rfa8 {[%emt 0:00:00]} 23. Rd3 {[%emt 0:00:00]} Nd7 {[%emt 0:00:00]} 24. Re3 {[%emt 0:00:00]} Qf6 {[%emt 0:00:00]} 25. f4 {[%emt 0:00:00]} Nf7 {[%emt 0:00:00]} 26. Bc3 {[%emt 0:01:38]} d5 {[%emt 0:00:00]} 27. c5 {[%emt 0:00:00]} b5 {[%emt 0:02:32]} 28. Qd2 {[%emt 0:01:10]} Nd8 {[%emt 0:00:00]} 29. Nc2 {[%emt 0:00:00]} Bc8 {[%emt 0:00:31]} 30. a4 {[%emt 0:00:00]} bxa4 {[%emt 0:01:27]} 31. Ra1 {[%emt 0:01:41]} R6a7 {[%emt 0:00:00]} 32. Rxa4 {[%emt 0:00:00]} Ba6 {[%emt 0:01:00]} 33. Ra1 {[%emt 0:00:27]} Qf7 {[%emt 0:00:00]} 34. Nb4 {[%emt 0:00:00]} Bb5 {[%emt 0:01:00]} 35. Nd3 {[%emt 0:00:00]} Nf6 {[%emt 0:00:30]} 36. Ne5 {[%emt 0:00:52]} Qc7 {[%emt 0:00:00]} 37. Bb4 {[%emt 0:01:43]} Ba6 {[%emt 0:01:00]} 38. Rb3 {[%emt 0:00:00]} Nf7 {[%emt 0:00:00]} 39. Nxf7 {[%emt 0:00:00]} Kxf7 {[%emt 0:01:00]} 40. Qc2 {[%emt 0:00:00]} Bc4 {[%emt 0:00:07]} 41. Rb2 {[%emt 0:31:28]} Bb5 {[%emt 0:22:56]} 42. e3 {[%emt 0:00:00]} g5 {[%emt 0:06:57]} 43. Bf1 {[%emt 0:00:14]} Bxf1 {[%emt 0:00:46]} 44. Rxf1 {[%emt 0:01:48]} gxf4 {[%emt 0:01:44]} 45. exf4 {[%emt 0:00:00]} h5 {[%emt 0:00:00]} 46. Be1 {[%emt 0:00:00]} Ne4 {[%emt 0:00:00]} 47. Rb6 {[%emt 0:00:00]} Kf6 {[%emt 0:00:00]} 48. Qa4 {[%emt 0:00:00]} Rc8 {[%emt 0:01:12]} 49. Kh1 {[%emt 0:01:39]} Qg7 {[%emt 0:00:29]} 50. Qb3 {[%emt 0:00:00]} Qc7 {[%emt 0:00:00]} 51. Rg1 {[%emt 0:00:00]} Rca8 {[%emt 0:01:12]} 52. Qf3 {[%emt 0:00:15]} Kg6 {[%emt 0:00:00]} 53. Rg2 {[%emt 0:00:00]} Rxa5 {[%emt 0:00:57]} 54. Bxa5 {[%emt 0:02:56]} Rxa5 {[%emt 0:01:10]} 55. h3 {[%emt 0:00:38]} Ra4 {[%emt 0:00:06]} 56. Qe3 {[%emt 0:00:00]} Rc4 {[%emt 0:00:00]} 57. Kh2 {[%emt 0:00:00]} Kf6 {[%emt 0:00:39]} 58. h4 {[%emt 0:00:00]} Qc8 {[%emt 0:00:00]} 59. Qa3 {[%emt 0:00:38]} Nc3 {[%emt 0:00:00]} 60. Qa7 {[%emt 0:00:07]} 1-0